bitfinex/quotes_ETHUSD_20250925
["timestamp","ask_amount","ask_price","bid_price","bid_amount"]
[1758830464165,0.1272,3922.6,3922.0,0.1272]
[1758830464166,0.67045683,3922.6,3922.3,2.54946467]
[1758830464370,0.67045683,3922.6,3922.1,2.54964825]
[1758830464371,0.1272,3922.6,3922.4,7.0504544]
[1758830464800,0.54323084,3922.5,3922.1,4.501]
[1758830465006,0.1272,3922.6,3922.1,4.501]
[1758830465204,0.54322879,3922.5,3921.3,0.4326]
[1758830465405,0.54322879,3922.5,3921.7,2.54989969]
[1758830465406,0.1272,3922.2,3921.7,2.54989969]
[1758830465608,0.54322879,3922.1,3921.7,2.54989969]
[1758830465906,0.1272,3922.2,3921.1,0.1272]
[1758830465907,0.1272,3921.7,3921.1,0.1272]
[1758830466108,0.1272,3921.7,3921.2,4.499]
[1758830466269,2.55004023,3921.6,3919.7,1.531]
[1758830466471,0.1272,3921.3,3920.7,4.6262]
[1758830466808,0.1272,3921.3,3920.8,2.55048556]
[1758830467111,0.54284359,3921.2,3920.6,0.002]
[1758830467309,0.1272,3920.8,3920.6,0.002]
[1758830468177,0.54270667,3920.7,3920.6,0.002]
[1758830468408,0.75230667,3920.7,3920.6,0.002]
[1758830468612,0.54270667,3920.7,3920.6,0.002]
[1758830469110,0.54270667,3920.7,3920.6,3.22803]
[1758830469320,0.54281827,3921.3,3921.1,2.55030476]
[1758830469526,0.54281827,3921.7,3921.6,2.5499796]
[1758830469675,0.1272,3921.8,3921.6,2.5499796]
[1758830469891,0.1272,3921.8,3921.6,2.54996412]
[1758830470291,0.1272,3921.8,3921.7,2.54991457]
[1758830470790,0.1272,3921.8,3921.7,2.98251457]
[1758830471207,0.1272,3922.1,3922.0,2.54971953]
[1758830471412,0.1272,3922.5,3922.0,0.70089719]
[1758830471613,0.1272,3922.5,3922.2,2.54956816]
[1758830471910,0.54328607,3922.9,3922.8,2.54919955]
[1758830472077,0.90303324,3923.4,3922.9,2.54913456]
[1758830472078,0.54328607,3923.0,3922.9,2.54913456]
[1758830472415,0.1272,3923.4,3923.3,2.54887467]
[1758830472813,0.1272,3923.4,3922.9,0.6754]
[1758830473204,0.54382212,3923.3,3923.0,7.04503571]
[1758830473525,0.1272,3923.4,3923.0,2.54903571]
[1758830473711,0.1272,3923.4,3923.1,2.54900088]
[1758830474021,0.1272,3923.4,3923.2,2.54892936]
[1758830474513,0.1272,3923.4,3923.3,2.54887467]
[1758830474721,0.54382212,3923.9,3923.5,2.54874474]
[1758830474888,0.1272,3923.8,3923.7,2.54856274]
[1758830475090,0.1282,3924.0,3923.9,2.54848492]
[1758830475284,0.1282,3924.0,3923.7,2.79141466]
[1758830475501,0.1282,3924.0,3923.8,4.492]
[1758830475696,0.1282,3924.0,3923.8,7.04054005]
[1758830475906,0.1282,3924.0,3923.9,2.54848492]
[1758830476485,0.1282,3924.0,3923.8,4.492]
[1758830476686,0.1282,3924.0,3923.9,3.22388492]
[1758830476916,0.1282,3924.0,3923.9,3.50826418]
[1758830477222,0.001,3924.0,3923.9,7.99626418]
[1758830477516,0.001,3924.4,3924.3,2.54822516]
[1758830477692,0.001,3924.4,3924.3,7.03622516]
[1758830478018,0.001,3924.4,3924.3,7.86222516]
[1758830478199,0.001,3924.4,3924.3,8.44230936]
[1758830478806,0.001,3924.4,3924.3,11.44230936]
[1758830479006,0.001,3924.4,3924.3,12.23430936]
[1758830480731,0.001,3924.4,3924.3,8.95110936]
[1758830480916,0.001,3924.4,3924.3,12.61852516]
[1758830481752,0.001,3924.4,3924.3,12.85802516]
[1758830483442,0.001,3924.4,3924.3,12.61852516]
[1758830483647,0.001,3924.4,3924.3,3.4593]
[1758830483854,0.2106,3924.4,3923.2,0.2395]
[1758830484052,0.2129,3924.4,3923.6,2.54862072]
[1758830484340,0.2129,3924.4,3923.8,2.54854987]
[1758830484521,0.2106,3924.4,3923.9,4.484]
[1758830485301,2.75877477,3924.4,3923.9,4.484]
[1758830485632,2.54839822,3924.1,3923.5,4.481]
[1758830485798,2.76013438,3924.3,3923.1,2.54899276]
[1758830485799,2.54853552,3923.9,3923.1,2.54899276]
[1758830485995,0.48777748,3924.3,3923.2,3.687]
[1758830485996,0.2096,3923.8,3923.2,3.687]
[1758830486249,0.2096,3924.3,3923.3,4.50648874]
[1758830486404,0.001,3924.4,3923.4,2.5488097]
[1758830486731,0.001,3924.4,3923.7,2.54859519]
[1758830487033,0.001,3924.4,3923.8,7.02853988]
[1758830487413,0.7203071,3924.4,3923.1,3.0]
[1758830487601,2.54849836,3923.9,3923.1,6.211]
[1758830487795,0.2096,3924.1,3923.1,6.211]
[1758830488005,2.54855015,3923.8,3923.1,8.75994429]
[1758830488313,2.54879521,3923.5,3922.8,2.54919524]
[1758830488498,2.75822896,3923.7,3922.7,4.479]
[1758830488694,2.75822896,3923.7,3923.0,2.54906123]
[1758830488916,3.28912738,3923.7,3923.0,2.54906123]
[1758830489128,2.5486798,3923.6,3923.0,2.54906123]
[1758830489332,0.53089842,3923.7,3922.8,4.479]
[1758830489501,0.54303861,3924.1,3922.8,4.477]
[1758830489813,2.123,3924.1,3923.0,2.54902354]
[1758830489996,2.54866182,3923.7,3923.0,2.54902354]
[1758830490331,2.66603861,3924.1,3922.9,2.54909377]
[1758830490737,0.1272,3923.2,3923.1,2.54898062]
[1758830491242,0.1272,3923.2,3922.8,4.477]
[1758830491445,0.0023,3923.6,3921.9,3.4593]
[1758830491643,0.1272,3923.0,3922.5,2.5493504]
[1758830491806,0.1272,3923.0,3922.5,7.0223504]
[1758830492422,0.1272,3923.0,3922.3,0.1272]
[1758830492607,0.1272,3923.0,3922.5,2.54937357]
[1758830492811,0.1272,3923.0,3922.4,4.471]
[1758830493447,0.1272,3923.0,3922.8,2.54917962]
[1758830493611,0.1272,3923.0,3922.6,2.57481812]
[1758830493818,0.1272,3923.0,3922.8,2.54915172]
[1758830494333,0.1272,3923.0,3922.9,2.54913456]
[1758830494544,0.54303861,3923.8,3922.9,1.30401601]
[1758830494847,0.1272,3923.5,3923.4,2.5488097]
[1758830495008,2.54825118,3924.3,3923.6,2.54863821]
[1758830495211,0.1272,3923.9,3923.6,7.01863821]
[1758830495406,0.1272,3923.9,3923.7,2.54861254]
[1758830495637,0.1272,3923.9,3923.6,7.01767947]
[1758830496246,0.1272,3923.9,3923.5,2.54872267]
[1758830496538,0.1272,3923.9,3923.5,4.469]
[1758830496743,0.1272,3923.9,3923.5,7.47703433]
[1758830497340,0.1272,3923.9,3923.6,2.54862253]
[1758830497643,0.1272,3923.9,3923.5,4.469]
[1758830497818,2.54855377,3923.8,3923.1,2.54898118]
[1758830498017,0.1272,3923.5,3923.3,4.464]
[1758830498935,0.1272,3923.5,3923.3,7.4721307]
[1758830499145,0.1272,3923.5,3923.3,4.464]
[1758830499348,0.1272,3923.5,3923.1,4.463]
[1758830499648,0.1272,3923.2,3923.1,4.463]
[1758830499948,2.54848824,3923.9,3923.2,2.54893964]
[1758830499949,0.1272,3923.5,3923.2,2.54893964]
[1758830500138,0.1272,3923.5,3923.1,4.9223]
[1758830500339,0.1272,3923.5,3923.1,4.463]
[1758830500650,0.1272,3923.5,3922.9,0.1272]
[1758830500819,2.54886697,3923.4,3922.6,0.002]
[1758830501164,2.54894637,3923.2,3922.6,2.55132323]
[1758830501375,3.09204653,3923.1,3922.6,0.002]
[1758830501570,0.54303861,3923.0,3922.6,0.002]
[1758830502074,0.54303861,3923.2,3922.6,2.55128549]
[1758830502276,0.54303861,3923.1,3922.6,0.002]
[1758830502571,2.54926453,3922.7,3922.6,0.002]
[1758830502942,2.54911192,3923.0,3922.6,0.002]
[1758830503142,3.09218965,3922.9,3922.6,0.002]
[1758830503345,2.54915104,3922.9,3922.6,0.002]
[1758830503772,3.09218965,3922.9,3922.6,0.002]
[1758830503947,2.54915104,3922.9,3922.6,0.002]
[1758830504155,2.54894597,3923.2,3922.7,0.4593]
[1758830504156,0.54303861,3923.0,3922.7,0.4593]
[1758830504355,3.09207732,3923.1,3922.6,0.002]
[1758830504549,2.54914696,3922.9,3922.6,0.002]
[1758830504753,0.54303861,3922.9,3922.6,0.002]
[1758830504977,2.54926453,3922.7,3922.6,0.002]
[1758830505180,3.09230314,3922.7,3922.6,0.002]
[1758830505349,3.88700768,3922.7,3922.6,0.002]
[1758830505545,3.88930768,3922.7,3922.6,0.002]
[1758830505848,3.88700768,3922.7,3922.6,0.002]
[1758830506066,1.12814315,3922.7,3922.6,0.002]
[1758830506243,0.54303861,3922.9,3922.6,0.4613]
[1758830506442,3.09197933,3923.2,3922.6,2.55132162]
[1758830506644,2.54894072,3923.2,3922.6,0.4613]
[1758830506843,2.54901189,3923.1,3922.6,0.4613]
[1758830507072,2.54901189,3923.1,3922.6,0.002]
[1758830507278,2.54895098,3923.2,3922.6,0.002]
[1758830507465,0.54303861,3923.1,3922.6,0.002]
[1758830507649,0.54303861,3923.3,3922.6,0.002]
[1758830507956,3.09200172,3923.2,3922.6,2.55131721]
[1758830508283,0.54303861,3923.1,3922.6,2.55131721]
[1758830508479,0.54303861,3923.2,3922.6,2.55131721]
[1758830508683,0.54303861,3923.1,3922.6,3.01611721]
[1758830508880,3.09199512,3923.2,3922.6,0.002]
[1758830509183,0.54303861,3923.1,3922.6,2.55131562]
[1758830509380,0.54303861,3923.0,3922.6,0.002]
[1758830509556,3.09218404,3922.9,3922.6,0.002]
[1758830509761,0.54303861,3922.9,3922.6,0.002]
[1758830510456,0.54303861,3922.8,3922.6,0.002]
[1758830510664,0.54303861,3922.7,3922.6,0.002]
[1758830510848,0.1272,3922.7,3922.6,0.002]
[1758830511248,0.67023861,3922.7,3922.6,0.002]
[1758830513048,3.56397929,3922.7,3922.6,0.002]
[1758830513248,4.24250213,3922.7,3922.6,0.002]
[1758830514816,3.56397929,3922.7,3922.6,0.002]
[1758830515032,8.00997929,3922.7,3922.6,0.002]
[1758830515315,7.80037929,3922.7,3922.6,0.002]
[1758830515666,0.67023861,3922.7,3922.6,0.002]
[1758830516005,1.35413066,3922.7,3922.6,0.002]
[1758830516365,3.21950314,3922.7,3922.6,0.002]
[1758830516570,3.90339519,3922.7,3922.6,0.002]
[1758830517084,0.67023861,3922.7,3922.6,0.4668]
[1758830517381,0.67023861,3922.7,3922.6,0.7105]
[1758830518267,0.54303861,3922.7,3922.6,0.7105]
[1758830518665,0.54303861,3922.7,3922.6,3.25982952]
[1758830518903,0.54303861,3922.7,3922.6,0.7105]
[1758830519881,0.54303861,3922.7,3922.6,0.4668]
[1758830520102,0.54303861,3922.7,3922.6,0.002]
[1758830520503,3.72483181,3922.7,3922.6,0.002]
[1758830520816,8.37873181,3922.7,3922.6,0.002]
[1758830521019,9.28176505,3922.7,3922.6,0.002]
[1758830521186,8.37643181,3922.7,3922.6,0.002]
[1758830521510,8.37873181,3922.7,3922.6,0.002]
[1758830521712,8.37643181,3922.7,3922.6,0.002]
[1758830522219,8.37873181,3922.7,3922.6,0.002]
[1758830522819,8.37643181,3922.7,3922.6,0.002]
[1758830522994,3.72483181,3922.7,3922.6,0.002]
[1758830523195,7.53130314,3922.7,3922.6,0.002]
[1758830523397,0.54303861,3922.7,3922.6,0.002]
[1758830523589,3.09230314,3922.7,3922.6,0.002]
[1758830523917,3.77581017,3922.7,3922.6,0.002]
[1758830524119,4.00370762,3922.7,3922.6,0.002]
[1758830524300,4.32695089,3922.7,3922.6,0.002]
[1758830524921,1.77768636,3922.7,3922.6,0.002]
[1758830525121,1.77768636,3922.7,3922.6,0.4683]
[1758830525122,1.22649082,3922.7,3922.6,0.4683]
[1758830525288,0.54303861,3922.7,3922.6,3.24702952]
[1758830525487,0.1272,3923.0,3922.7,2.54926453]
[1758830525687,0.54695029,3922.9,3922.8,0.6957]
[1758830526182,0.54696344,3922.9,3922.8,0.6957]
[1758830526484,0.91140448,3923.7,3922.8,0.6957]
[1758830526485,0.68345221,3923.5,3922.8,1.27788439]
[1758830526802,0.67438767,3923.4,3922.9,0.6957]
[1758830527114,0.54718767,3923.3,3923.0,0.6957]
[1758830527316,0.54718767,3923.2,3923.1,3.24468657]
[1758830527520,0.68345221,3923.8,3923.1,0.6957]
[1758830527731,0.91240448,3924.0,3923.1,0.6957]
[1758830527732,0.54730907,3923.7,3923.6,2.54862227]
[1758830528024,0.1272,3923.9,3923.6,2.54862227]
[1758830528025,0.1272,3923.9,3923.6,0.6957]
[1758830528217,0.54724168,3923.8,3923.7,0.6957]
[1758830528598,0.54724168,3923.8,3923.4,4.436]
[1758830528798,0.1272,3923.5,3923.2,2.54888845]
[1758830529001,0.54724168,3923.4,3923.1,3.01529604]
[1758830529330,0.1272,3923.5,3923.2,0.4663]
[1758830529512,0.54710434,3923.4,3923.2,0.4663]
[1758830529716,0.54710434,3923.3,3922.7,0.2294]
[1758830529917,0.54710434,3923.3,3922.3,2.54952184]
[1758830529918,0.1272,3922.9,3922.8,2.54919955]
[1758830530225,0.1272,3922.9,3922.8,3.24489955]
[1758830530425,0.1272,3922.9,3922.8,3.82452163]
[1758830530629,0.5471896,3923.4,3923.1,2.5489771]
[1758830530825,0.6743896,3923.3,3923.2,3.24463964]
[1758830531643,0.6743896,3923.3,3923.2,0.6957]
[1758830532913,0.6743896,3923.3,3922.6,0.8249]
[1758830533242,0.5471896,3923.2,3922.7,2.54923917]
[1758830533445,0.5471896,3923.1,3922.8,2.5491843]
[1758830533623,0.1272,3923.3,3922.7,0.4663]
[1758830533945,0.1272,3923.3,3922.6,0.1292]
[1758830533946,0.54713799,3923.2,3922.9,2.54910876]
[1758830534123,0.54713799,3923.1,3922.9,2.54910876]
[1758830534440,0.54713799,3923.0,3922.9,3.24480876]
[1758830534799,0.68345221,3923.8,3922.9,0.72119134]
[1758830535037,0.54715166,3923.7,3923.6,2.54867978]
[1758830535332,0.54715166,3923.7,3923.6,3.26986657]
[1758830535536,0.001,3924.0,3923.9,2.54848492]
[1758830535720,0.54808539,3924.0,3923.8,2.54854226]
[1758830536029,0.54708539,3923.9,3923.8,7.44284226]
[1758830536234,0.001,3924.0,3923.8,7.67224226]
[1758830536407,0.001,3924.0,3923.9,3.24418492]
[1758830536730,0.54794974,3924.0,3923.9,3.24418492]
[1758830537531,0.001,3924.0,3923.9,3.24418492]
[1758830537832,0.001,3924.0,3923.6,0.1272]
[1758830538034,0.1272,3923.8,3923.7,2.54855499]
[1758830538330,0.001,3924.0,3923.8,2.54853631]
[1758830538502,0.54763632,3924.0,3923.8,3.22903631]
[1758830538697,0.54763632,3924.0,3923.9,0.6805]
[1758830538893,0.001,3924.0,3923.9,0.6805]
[1758830539095,0.54764298,3924.0,3923.9,0.6805]
[1758830539332,0.001,3924.0,3923.9,0.6805]
[1758830539507,0.001,3924.0,3923.4,0.1272]
[1758830539508,0.54650684,3924.0,3923.4,0.1272]
[1758830539810,0.54650684,3923.9,3923.4,2.6342]
[1758830540035,2.5487235,3923.6,3922.9,4.423]
[1758830540202,0.1272,3923.4,3922.9,7.4216317]
[1758830540527,0.1272,3923.4,3923.1,2.54899915]
[1758830541647,0.75602578,3923.3,3922.6,0.002]
[1758830541802,2.54904606,3923.1,3922.6,0.002]
[1758830542004,0.54642578,3923.0,3922.6,0.002]
[1758830542240,0.54642578,3922.9,3922.7,0.4495]
[1758830542408,0.1272,3922.8,3922.7,0.4495]
[1758830542633,0.1272,3922.8,3922.6,0.233]
[1758830542835,0.1272,3922.8,3922.6,0.002]
[1758830543470,2.54926453,3922.7,3922.6,0.002]
[1758830543635,3.30517107,3922.7,3922.6,0.002]
[1758830543958,0.54630654,3922.7,3922.6,0.002]
[1758830544548,3.09557107,3922.7,3922.6,0.002]
[1758830545227,3.30517107,3922.7,3922.6,0.002]
[1758830545429,0.54630654,3922.7,3922.6,0.002]
[1758830546049,3.09557107,3922.7,3922.6,0.002]
[1758830546270,0.54630654,3922.7,3922.6,0.002]
[1758830546661,3.09557107,3922.7,3922.6,0.002]
[1758830547469,0.54630654,3922.7,3922.6,0.002]
[1758830548265,0.54630654,3922.7,3922.6,3.23182952]
[1758830548465,0.54630654,3923.1,3922.8,2.5491882]
[1758830548668,0.67350654,3923.0,3922.9,0.6805]
[1758830549373,3.68345221,3923.4,3923.0,2.54904778]
[1758830549374,0.1272,3923.2,3923.0,2.54904778]
[1758830549547,0.54630654,3923.1,3923.0,2.54904778]
[1758830550062,0.54630654,3923.1,3923.0,3.22954778]
[1758830550267,0.54630654,3923.1,3923.0,0.6805]
[1758830550465,0.54630654,3923.1,3922.7,0.6805]
[1758830550764,0.1272,3923.2,3922.8,3.22969091]
[1758830550969,0.54621392,3923.1,3922.9,2.54913456]
[1758830551172,0.1272,3923.2,3923.0,0.6805]
[1758830551333,0.54621438,3923.1,3923.0,0.6805]
[1758830551748,0.54621438,3923.1,3923.0,0.6825]
[1758830551963,0.54621438,3923.1,3923.0,3.23156958]
[1758830552164,0.54621438,3923.1,3923.0,0.6825]
[1758830552369,3.09521899,3923.1,3923.0,0.002]
[1758830552534,4.39199855,3923.1,3923.0,0.002]
[1758830553943,5.30340303,3923.1,3923.0,0.002]
[1758830554254,4.39429855,3923.1,3923.0,0.002]
[1758830554985,5.74884841,3923.1,3923.0,0.002]
[1758830555278,2.54926453,3922.7,3922.6,0.002]
[1758830555564,10.51247891,3922.7,3922.6,0.002]
[1758830555769,10.72207891,3922.7,3922.6,0.002]
[1758830557801,18.70637891,3922.7,3922.6,0.002]
[1758830558168,2.54978454,3921.9,3921.8,0.002]
[1758830558371,13.54683711,3921.9,3921.8,0.002]
[1758830558603,14.21442238,3921.9,3921.8,0.002]
[1758830558825,13.64089892,3921.9,3921.8,0.002]
[1758830558977,15.00563996,3921.9,3921.8,0.002]
[1758830559286,15.3964334,3921.9,3921.8,0.002]
[1758830559865,16.76023404,3921.9,3921.8,0.002]
[1758830560068,15.3964334,3921.9,3921.8,0.002]
[1758830562397,17.20249988,3921.9,3921.8,0.002]
[1758830562578,6.34243484,3920.9,3920.8,0.002]
[1758830562907,14.31892791,3920.9,3920.8,0.002]
[1758830563109,14.52852791,3920.9,3920.8,0.002]
[1758830563286,14.52852791,3920.9,3919.5,0.231]
[1758830563287,2.55128074,3919.6,3919.5,0.231]
[1758830563487,2.55137057,3919.5,3919.3,0.6805]
[1758830563682,2.55141093,3919.4,3918.1,3.0]
[1758830563903,2.55141093,3919.4,3918.8,0.0032]
[1758830564086,2.55141093,3919.4,3918.5,3.0]
[1758830564291,6.96929583,3919.6,3918.9,0.6805]
[1758830564490,6.96929583,3919.6,3919.0,0.6805]
[1758830564688,2.55129583,3919.6,3919.1,0.6805]
[1758830565010,2.55129583,3919.6,3918.9,2.55171358]
[1758830565011,4.418,3919.5,3919.2,0.6805]
[1758830565309,6.96935828,3919.5,3919.2,0.6805]
[1758830565513,4.418,3919.5,3919.3,0.6805]
[1758830565694,4.418,3919.5,3919.4,0.6805]
[1758830566806,6.96934583,3919.5,3919.4,0.6805]
[1758830566986,5.37004999,3919.5,3918.7,0.6805]
[1758830567188,4.418,3919.5,3918.8,0.0032]
[1758830567389,2.55178007,3918.9,3918.8,0.0032]
[1758830567710,0.1272,3918.8,3918.7,0.6805]
[1758830568730,0.1272,3918.8,3918.2,0.6765]
[1758830569009,4.418,3919.0,3918.2,0.6765]
[1758830569010,0.1272,3918.5,3918.4,0.0032]
[1758830569209,2.67919693,3918.5,3918.4,0.0032]
[1758830569402,2.67919693,3918.5,3918.1,0.0032]
[1758830569403,2.55217729,3918.3,3918.1,0.0032]
[1758830569712,4.419,3918.3,3918.1,0.0024]
[1758830569921,4.419,3918.3,3917.3,2.55276376]
[1758830569922,4.419,3918.3,3917.3,0.2354]
[1758830570128,4.419,3918.3,3917.4,0.0016]
[1758830570129,2.55253132,3917.7,3917.4,0.0016]
[1758830570331,10.18077322,3918.3,3917.1,0.4411]
[1758830570332,6.97164397,3917.6,3917.1,0.4411]
[1758830570535,4.419,3917.5,3917.1,0.4411]
[1758830570836,4.419,3917.5,3916.8,0.2354]
[1758830570997,4.419,3917.5,3916.8,0.6765]
[1758830571197,2.55280538,3917.3,3916.8,0.6765]
[1758830571525,2.55308327,3916.9,3916.4,0.6765]
[1758830571810,4.419,3917.0,3916.4,0.6765]
[1758830572012,4.419,3917.0,3916.5,0.6765]
[1758830572198,4.419,3917.0,3916.6,0.6765]
[1758830572400,4.419,3917.0,3916.7,0.4411]
[1758830572609,0.69719115,3916.9,3916.1,2.78894568]
[1758830572824,0.69719115,3916.9,3915.9,2.125]
[1758830572825,4.419,3917.0,3916.3,3.0]
[1758830572984,4.419,3917.0,3916.4,0.70203365]
[1758830573181,2.55305325,3916.9,3916.4,0.2354]
[1758830573411,6.97199178,3917.0,3916.4,0.2354]
[1758830573613,0.54006723,3916.9,3916.4,0.2354]
[1758830573922,0.54006723,3916.9,3916.0,0.2354]
[1758830573923,2.55318467,3916.7,3916.0,0.2354]
[1758830574217,1.29127276,3916.9,3916.0,0.6765]
[1758830574383,4.42,3916.8,3916.1,2.55350084]
[1758830574584,0.54006723,3916.9,3916.5,2.55324753]
[1758830574779,4.42,3917.2,3916.6,3.22967597]
[1758830575028,4.96006723,3917.2,3916.6,0.6765]
[1758830575332,4.96006723,3917.2,3916.6,3.22973005]
[1758830575481,4.42,3917.2,3916.8,2.55310457]
[1758830575684,4.42,3917.2,3916.9,3.22953939]
[1758830575910,4.42,3917.2,3917.0,3.22946327]
[1758830576115,0.54006723,3917.6,3917.1,3.22938667]
[1758830576411,0.54006723,3917.5,3917.2,0.6765]
[1758830576604,0.54006723,3917.5,3917.3,0.6765]
[1758830576807,0.54006723,3917.5,3917.3,0.2354]
[1758830577088,0.54006723,3917.5,3917.3,0.6765]
[1758830577315,0.54006723,3917.5,3917.3,3.2292738]
[1758830577496,0.54006723,3917.5,3916.8,0.4411]
[1758830577696,4.42,3917.6,3916.8,0.4411]
[1758830577697,0.54006723,3917.4,3916.8,0.4411]
[1758830577987,0.68003688,3917.8,3917.4,2.55271353]
[1758830577988,0.54006723,3917.5,3917.4,2.55271353]
[1758830578192,0.54006723,3917.7,3917.6,2.55258321]
[1758830578532,0.54006723,3917.8,3917.6,3.22908321]
[1758830578683,0.54006723,3917.7,3917.6,2.55258321]
[1758830578884,0.54006723,3918.0,3917.6,3.22908321]
[1758830579084,0.54006723,3917.9,3917.6,2.55258321]
[1758830579286,0.66726723,3917.8,3917.7,0.6765]
[1758830579482,0.54006723,3917.8,3917.7,3.22901805]
[1758830579688,0.54006723,3918.0,3917.8,2.55241156]
[1758830579916,0.54006723,3917.9,3917.8,2.55241156]
[1758830580230,4.421,3918.2,3908.1,0.4002476]
[1758830580231,0.54006723,3918.1,3917.1,4.421]
[1758830580446,0.54006723,3918.0,3917.2,0.4421]
[1758830580603,0.54006723,3917.9,3917.7,2.5524717]
[1758830580932,4.421,3918.2,3917.8,0.6765]
[1758830581133,0.53954092,3918.1,3918.0,2.55232261]
[1758830581335,0.68003688,3918.8,3918.6,2.55188595]
[1758830581635,0.53998514,3918.7,3918.6,2.55193181]
[1758830582003,0.53998514,3918.7,3918.1,4.421]
[1758830582204,0.53998514,3918.6,3918.3,2.55206431]
[1758830582503,0.53998514,3918.5,3918.0,2.55226879]
[1758830582709,0.53998514,3918.5,3918.3,2.55212719]
[1758830582710,0.53998514,3918.4,3918.3,2.55212719]
[1758830582917,0.53998514,3918.4,3918.3,0.6765]
[1758830583119,0.53998514,3918.4,3918.3,0.4411]
[1758830583318,0.53998514,3918.4,3918.3,3.22832719]
[1758830583732,0.53998514,3918.4,3918.3,3.80638001]
[1758830584340,2.126,3919.7,3918.3,3.80638001]
[1758830584341,0.68003688,3919.2,3918.5,2.55198775]
[1758830584524,0.90671584,3920.5,3918.9,3.792]
[1758830584727,0.76717219,3920.7,3920.3,2.55081592]
[1758830584728,1.67388803,3920.7,3920.3,2.55081592]
[1758830584927,1.67388803,3920.7,3919.8,2.78624188]
[1758830584928,0.90671584,3920.6,3919.8,2.78624188]
[1758830585125,0.90671584,3920.5,3919.6,4.421]
[1758830585328,0.90671584,3920.3,3919.1,0.2351]
[1758830585529,0.90671584,3919.6,3918.5,0.2351]
[1758830585730,0.90671584,3919.4,3918.6,0.49681931]
[1758830585934,0.90671584,3919.4,3919.2,2.55153211]
[1758830586327,0.90671584,3919.5,3919.3,2.55147602]
[1758830586518,0.90671584,3919.4,3918.7,0.2351]
[1758830586753,0.90671584,3919.2,3918.8,2.55174776]
[1758830586921,2.55185978,3918.8,3917.9,0.2351]
[1758830587117,0.90343394,3918.4,3917.9,0.2351]
[1758830587420,1.36116084,3918.6,3917.7,2.55246874]
[1758830587421,0.90343394,3918.1,3917.7,2.55246874]
[1758830587652,0.90343394,3918.0,3917.7,2.55246874]
[1758830587851,0.90343394,3918.0,3917.8,2.55245242]
[1758830588158,0.90343394,3918.0,3917.5,2.55263329]
[1758830588159,0.90343394,3918.0,3917.6,2.55252386]
[1758830588360,1.36116084,3918.0,3917.9,0.002]
[1758830588962,4.57656104,3918.5,3917.9,0.002]
[1758830589144,5.07959714,3918.5,3917.9,0.002]
[1758830589344,2.55217225,3918.3,3917.9,0.002]
[1758830589544,2.55243529,3917.9,3917.5,0.002]
[1758830589748,0.1272,3917.5,3916.8,2.126]
[1758830589947,1.03178443,3917.3,3916.9,2.55303939]
[1758830590170,1.03178443,3917.3,3917.2,2.55284386]
[1758830590343,0.1272,3917.3,3917.2,3.02414386]
[1758830590542,1.35691919,3917.5,3917.4,2.55271353]
[1758830590748,1.35691919,3917.6,3917.5,2.55264837]
[1758830591259,0.1272,3917.7,3917.5,2.55264837]
[1758830591553,1.35827161,3917.6,3917.5,2.55264837]
[1758830591737,0.1272,3917.7,3917.5,2.55264837]
[1758830591937,0.1272,3917.7,3917.6,2.55258321]
[1758830592350,0.1272,3917.7,3917.5,2.55263016]
[1758830593743,0.1272,3917.7,3917.6,2.55258321]
[1758830594262,0.1272,3917.7,3917.3,3.25917703]
[1758830594573,1.35974385,3917.4,3917.3,3.25917703]
[1758830595774,1.35974385,3917.5,3917.4,2.55271353]
[1758830595974,1.35974385,3917.5,3917.4,6.97371353]
[1758830596162,0.1272,3917.7,3917.4,4.421]
[1758830596475,0.5441538,3917.6,3917.4,4.421]
[1758830596773,0.1272,3917.7,3917.6,2.55258321]
[1758830596980,0.67154591,3917.7,3917.6,2.55258321]
[1758830597274,0.54434591,3917.7,3917.6,3.28450904]
[1758830597455,0.54434591,3917.7,3917.6,3.25898321]
[1758830597651,0.54434591,3917.7,3917.4,0.1272]
[1758830597983,0.54434591,3917.7,3914.2,0.48144906]
[1758830597984,2.55268913,3917.5,3916.5,0.2351]
[1758830598164,0.90751938,3916.7,3916.6,0.659]
[1758830598373,0.90751938,3916.7,3916.1,2.55351493]
[1758830598374,0.54434591,3916.7,3916.1,2.55351493]
[1758830598548,0.90751344,3916.4,3916.1,6.97451493]
[1758830598747,0.54434591,3916.3,3915.9,2.55369136]
[1758830598948,0.54434591,3916.2,3916.0,4.421]
[1758830599151,1.45185935,3916.1,3916.0,4.421]
[1758830599457,0.54434591,3916.1,3916.0,7.44962614]
[1758830599657,0.54434591,3916.1,3916.0,7.69592614]
[1758830600687,0.54434591,3916.1,3915.9,2.55369136]
[1758830600850,0.54434591,3916.0,3915.9,2.55369136]
[1758830601250,0.54434591,3916.0,3915.9,4.08569136]
[1758830601448,0.54434591,3916.0,3914.5,0.13342824]
[1758830601652,0.54434591,3916.0,3914.0,0.2463]
[1758830601653,0.90751344,3915.0,3914.6,1.343]
[1758830601956,1.45185935,3914.9,3914.3,0.2463]
[1758830602175,0.54434591,3914.8,3914.5,4.431]
[1758830602390,0.54434591,3914.7,3914.5,4.431]
[1758830602677,0.54434591,3914.6,3914.3,2.55473085]
[1758830602894,1.36127907,3915.0,3914.3,4.43]
[1758830602895,0.54434591,3914.5,3914.3,4.43]
[1758830603097,0.54434591,3914.4,3914.3,4.43]
[1758830603294,0.54434591,3914.4,3914.2,3.03623529]
[1758830603465,0.54434591,3914.3,3914.2,7.46523529]
[1758830604080,0.54434591,3914.3,3914.2,7.71153529]
[1758830604465,0.54434591,3914.3,3914.2,8.18653529]
[1758830605179,0.54434591,3914.3,3914.2,0.48144906]
[1758830605505,0.75394591,3914.3,3913.1,0.676]
[1758830605688,0.90399138,3914.0,3913.3,0.475]
[1758830605876,0.54434591,3913.9,3913.8,2.55506157]
[1758830606196,0.54434591,3913.9,3913.8,7.71636157]
[1758830606364,0.90399138,3914.7,3914.4,2.55466993]
[1758830606564,0.54192169,3914.6,3914.3,0.002]
[1758830606794,0.54192169,3914.5,3914.3,0.002]